bitfinex/quotes_SOLUSD_20251001
["timestamp","ask_amount","ask_price","bid_price","bid_amount"]
[1759327880361,0.1,219.82,219.79,20.8]
[1759327880531,0.1,219.82,219.8,38.30959053]
[1759327880727,0.1,219.82,219.8,38.98959053]
[1759327880912,0.1,219.82,219.81,36.16]
[1759327881228,0.1,219.82,219.81,35.48]
[1759327881411,0.1,219.82,219.81,69.24]
[1759327881617,14.41559401,219.82,219.81,69.24]
[1759327881815,0.1,219.82,219.81,69.24]
[1759327883005,0.1,219.82,219.81,35.48]
[1759327883215,5.36917659,219.82,219.81,69.24]
[1759327883426,0.1,219.82,219.81,69.24]
[1759327883826,13.69559401,219.82,219.81,35.48]
[1759327884006,5.31917659,219.82,219.81,69.22]
[1759327884217,13.69559401,219.82,219.81,69.22]
[1759327884836,18.2447706,219.82,219.81,35.48]
[1759327885040,18.9147706,219.82,219.81,35.48]
[1759327885366,18.2447706,219.82,219.81,69.22]
[1759327885519,13.69559401,219.82,219.81,33.74]
[1759327885720,18.9147706,219.82,219.81,33.74]
[1759327886523,4.54959053,219.8,219.75,5.23062109]
[1759327886846,13.59559401,219.81,219.76,33.74]
[1759327887023,14.26559401,219.81,219.77,0.5]
[1759327887226,14.26559401,219.81,219.77,34.24]
[1759327887550,13.59559401,219.79,219.78,33.74]
[1759327887729,14.26559401,219.79,219.78,33.74]
[1759327888634,18.81539154,219.79,219.78,33.74]
[1759327888827,18.81539154,219.79,219.73,35.48]
[1759327889040,18.81539154,219.79,219.74,33.74]
[1759327889346,13.59559401,219.77,219.75,33.74]
[1759327889521,7.88143582,219.82,219.75,33.74]
[1759327889522,5.2198313,219.79,219.75,33.74]
[1759327889822,13.59559401,219.77,219.75,33.74]
[1759327890346,13.87991715,219.78,219.76,33.74]
[1759327890651,13.09559401,219.78,219.76,33.74]
[1759327890855,5.21952006,219.81,219.76,33.74]
[1759327891027,4.54952006,219.81,219.76,34.42]
[1759327891661,5.21952006,219.81,219.76,34.42]
[1759327891867,5.21952006,219.81,219.73,56.28]
[1759327892033,5.21952006,219.81,219.73,61.51099123]
[1759327892237,16.59297895,219.81,219.73,56.96]
[1759327892455,0.95432314,219.8,219.73,35.48]
[1759327892637,13.59559401,219.78,219.74,33.72]
[1759327892952,13.59559401,219.78,219.75,33.72]
[1759327892953,0.67,219.77,219.75,33.72]
[1759327893164,0.67,219.77,219.76,33.72]
[1759327893361,13.59559401,219.78,219.76,33.72]
[1759327893546,0.28432314,219.81,219.76,33.72]
[1759327893748,13.59559401,219.8,219.76,33.72]
[1759327893944,13.59559401,219.8,219.76,34.4]
[1759327894345,13.59559401,219.8,219.76,33.72]
[1759327894545,14.26559401,219.8,219.76,33.72]
[1759327894739,13.59559401,219.78,219.73,36.16]
[1759327895236,0.67,219.77,219.73,35.48]
[1759327895438,13.59559401,219.78,219.74,33.72]
[1759327895639,14.26559401,219.78,219.74,33.72]
[1759327895941,13.59559401,219.76,219.7,0.68]
[1759327896148,13.59559401,219.76,219.71,33.72]
[1759327896349,14.26559401,219.76,219.72,33.72]
[1759327896548,14.26559401,219.76,219.68,0.68]
[1759327896749,14.26559401,219.76,219.69,33.72]
[1759327896957,4.55062571,219.75,219.69,33.72]
[1759327897158,18.14602301,219.76,219.68,4.55207465]
[1759327897347,13.59559401,219.74,219.67,20.8]
[1759327897540,13.59559401,219.72,219.64,0.68]
[1759327897741,13.59559401,219.72,219.65,33.72]
[1759327897945,13.59559401,219.72,219.65,34.4]
[1759327898146,13.59559401,219.72,219.65,33.72]
[1759327898450,13.59559401,219.72,219.66,0.68]
[1759327898652,0.67,219.73,219.66,0.68]
[1759327898851,18.14691332,219.72,219.66,0.68]
[1759327899566,18.14691332,219.72,219.67,33.72]
[1759327899750,18.81691332,219.72,219.67,33.72]
[1759327900151,18.14691332,219.72,219.67,33.72]
[1759327900353,18.14691332,219.72,219.67,34.4]
[1759327901168,4.5510359,219.74,219.68,0.68]
[1759327901370,13.59559401,219.75,219.68,0.68]
[1759327902058,18.14631094,219.75,219.68,0.68]
[1759327902378,18.81631094,219.75,219.68,0.68]
[1759327903067,4.55031034,219.77,219.68,5.23198956]
[1759327903257,14.26559401,219.76,219.69,33.72]
[1759327904869,14.26559401,219.76,219.68,5.23196559]
[1759327905056,4.55062571,219.75,219.7,33.7]
[1759327905263,4.55062571,219.75,219.68,5.23196559]
[1759327905264,4.55062571,219.75,219.71,33.7]
[1759327905451,0.67,219.74,219.68,0.68]
[1759327905651,0.67,219.74,219.69,33.7]
[1759327906466,5.50453472,219.77,219.7,0.68]
[1759327906641,13.59559401,219.76,219.7,0.68]
[1759327907070,4.55062571,219.75,219.7,0.68]
[1759327907275,5.22062571,219.75,219.7,0.68]
[1759327907752,5.22062571,219.75,219.62,27.80659222]
[1759327907753,14.26559401,219.74,219.65,4.55263271]
[1759327907958,0.28432314,219.77,219.68,0.68]
[1759327908172,13.59559401,219.76,219.69,20.8]
[1759327908380,13.87991715,219.8,219.7,34.38]
[1759327908549,13.87991715,219.8,219.71,0.68]
[1759327908550,18.14521932,219.8,219.71,0.68]
[1759327908950,13.59559401,219.8,219.72,4.55124704]
[1759327909173,13.59559401,219.8,219.73,0.68]
[1759327909483,0.67,219.79,219.74,33.7]
[1759327909770,0.67,219.78,219.71,0.68]
[1759327909973,13.59559401,219.77,219.72,33.7]
[1759327910162,14.26559401,219.77,219.72,33.7]
[1759327910362,0.67,219.76,219.72,33.7]
[1759327910763,13.59559401,219.78,219.72,33.7]
[1759327911074,4.55021158,219.77,219.72,33.7]
[1759327911451,0.67,219.76,219.72,33.7]
[1759327911655,0.67,219.75,219.73,33.7]
[1759327911879,4.55021158,219.77,219.73,33.7]
[1759327912061,14.26559401,219.76,219.73,33.7]
[1759327912551,13.59559401,219.76,219.73,34.38]
[1759327912967,13.59559401,219.76,219.73,33.7]
[1759327913284,0.67,219.75,219.73,33.7]
[1759327913448,0.67,219.75,219.68,0.68]
[1759327913654,13.59559401,219.74,219.69,33.68]
[1759327913853,0.72,219.73,219.67,20.8]
[1759327914154,0.72,219.72,219.68,33.68]
[1759327914364,13.59559401,219.7,219.68,33.68]
[1759327914575,14.31559401,219.7,219.68,33.68]
[1759327914775,14.31559401,219.69,219.68,33.68]
[1759327914980,13.59559401,219.69,219.68,33.68]
[1759327915184,14.31559401,219.69,219.63,40.73301963]
[1759327915357,13.59559401,219.69,219.64,33.68]
[1759327915555,13.59559401,219.69,219.64,34.38]
[1759327915761,13.59559401,219.69,219.65,0.7]
[1759327916066,13.59559401,219.69,219.66,0.7]
[1759327916456,13.59559401,219.69,219.67,0.7]
[1759327916655,13.59559401,219.69,219.68,33.68]
[1759327917578,13.59559401,219.69,219.68,34.38]
[1759327917757,13.59559401,219.69,219.68,33.68]
[1759327917957,18.14746255,219.69,219.68,33.68]
[1759327919579,13.59559401,219.68,219.63,35.48]
[1759327919759,13.59559401,219.68,219.64,33.68]
[1759327919959,0.72,219.67,219.64,33.68]
[1759327920256,13.59559401,219.7,219.65,0.7]
[1759327920578,18.43138105,219.71,219.66,0.7]
[1759327920767,0.72,219.7,219.64,33.68]
[1759327920964,0.72,219.69,219.65,33.66]
[1759327921261,13.59559401,219.67,219.65,33.66]
[1759327923274,5.27238318,219.67,219.65,33.66]
[1759327923490,4.55238318,219.67,219.65,33.66]
[1759327924081,13.59559401,219.67,219.65,33.66]
[1759327924383,13.59559401,219.65,219.63,35.48]
[1759327924586,13.87991715,219.65,219.64,33.66]
[1759327924793,0.28432314,219.65,219.64,33.66]
[1759327924973,0.28432314,219.64,219.63,35.48]
[1759327925173,0.28432314,219.64,219.63,69.14]
[1759327925174,16.64147076,219.64,219.63,69.14]
[1759327925412,14.59991715,219.64,219.63,69.14]
[1759327925565,13.59559401,219.64,219.63,69.14]
[1759327926184,13.59559401,219.64,219.63,69.84]
[1759327926381,13.59559401,219.64,219.63,69.14]
[1759327926583,13.59559401,219.64,219.63,69.84]
[1759327927474,0.86216157,219.69,219.63,69.84]
[1759327927676,13.73775558,219.69,219.63,69.84]
[1759327927882,13.73775558,219.69,219.63,74.39302177]
[1759327928066,0.28432314,219.69,219.63,74.39302177]
[1759327928677,13.59559401,219.7,219.63,74.39302177]
[1759327928998,13.87991715,219.72,219.64,0.7]
[1759327929198,5.27165186,219.71,219.64,0.7]
[1759327929988,13.87991715,219.7,219.63,35.48]
[1759327930203,0.28432314,219.66,219.63,35.48]
[1759327930377,13.87991715,219.64,219.63,35.48]
[1759327930577,13.87991715,219.64,219.63,69.12]
[1759327930578,14.59991715,219.64,219.63,69.12]
[1759327931300,19.1528219,219.64,219.63,69.12]
[1759327932404,19.1528219,219.64,219.63,35.48]
[1759327932405,21.19437551,219.64,219.63,35.48]
[1759327932693,21.19437551,219.64,219.63,69.12]
[1759327933699,21.19437551,219.64,219.63,35.48]
[1759327933991,21.19437551,219.64,219.52,0.7]
[1759327933992,0.28432314,219.59,219.52,0.7]
[1759327934166,0.28432314,219.59,219.5,4.55580865]
[1759327934167,0.28432314,219.59,219.53,34.34]
[1759327934501,13.59559401,219.57,219.54,33.64]
[1759327934797,13.59559401,219.55,219.5,0.7]
[1759327935094,13.59559401,219.55,219.51,33.64]
[1759327935400,13.59559401,219.53,219.51,33.64]
[1759327935580,18.15092071,219.53,219.47,61.55641887]
[1759327935781,18.15092071,219.53,219.48,33.64]
[1759327935986,18.15092071,219.53,219.49,0.7]
[1759327936189,18.15092071,219.53,219.5,33.64]
[1759327936494,18.15092071,219.53,219.5,34.34]
[1759327936804,18.15092071,219.53,219.5,33.64]
[1759327937481,0.28432314,219.54,219.51,0.7]
[1759327937800,18.15037183,219.55,219.52,0.7]
[1759327937975,18.15037183,219.55,219.53,33.64]
[1759327938484,13.87991715,219.57,219.53,33.64]
[1759327938693,13.59559401,219.57,219.54,0.7]
[1759327938874,13.59559401,219.58,219.55,0.7]
[1759327939076,13.59559401,219.58,219.56,34.34]
[1759327939271,13.59559401,219.58,219.57,33.64]
[1759327939794,13.59559401,219.59,219.57,33.64]
[1759327942011,13.87991715,219.6,219.57,33.64]
[1759327943418,13.59559401,219.6,219.58,0.68]
[1759327943777,13.59559401,219.6,219.57,33.64]
[1759327943979,4.55384321,219.6,219.57,33.64]
[1759327944597,13.59559401,219.59,219.58,33.62]
[1759327944797,13.59559401,219.59,219.55,0.68]
[1759327945103,13.59559401,219.57,219.52,0.67]
[1759327945297,13.59559401,219.57,219.53,33.62]
[1759327945485,13.59559401,219.55,219.53,33.62]
[1759327946192,13.59559401,219.53,219.46,20.8]
[1759327946383,13.59559401,219.53,219.48,33.62]
[1759327946584,13.59559401,219.53,219.48,34.29]
[1759327947280,14.29559401,219.53,219.48,34.29]
[1759327947484,0.28432314,219.54,219.48,34.29]
[1759327947976,0.28432314,219.54,219.49,33.62]
[1759327948175,29.53874527,219.53,219.49,33.62]
[1759327948377,18.15078008,219.53,219.49,33.62]
[1759327948577,18.85078008,219.53,219.49,33.62]
[1759327949088,18.15078008,219.53,219.49,34.29]
[1759327949290,13.59559401,219.53,219.49,33.62]
[1759327949602,13.59559401,219.53,219.47,35.5]
[1759327949603,14.57991715,219.52,219.47,35.5]
[1759327949795,0.28432314,219.49,219.47,35.5]
[1759327950000,0.28432314,219.49,219.48,33.6]
[1759327950188,18.43593336,219.49,219.48,33.6]
[1759327950503,13.87991715,219.48,219.47,35.5]
[1759327950700,14.55079565,219.48,219.47,69.1]
[1759327951116,0.98432314,219.48,219.47,69.1]
[1759327951824,0.28432314,219.48,219.47,69.1]
[1759327952112,0.14216157,219.5,219.47,69.1]
[1759327952624,13.87991715,219.5,219.47,69.77]
[1759327952783,13.73775558,219.5,219.47,69.77]
[1759327953193,13.73775558,219.5,219.47,69.1]
[1759327953488,13.59559401,219.51,219.48,0.67]
[1759327954204,13.59559401,219.51,219.47,69.1]
[1759327954205,4.55564522,219.51,219.47,69.1]
[1759327954409,13.73775558,219.52,219.47,69.1]
[1759327954704,13.87991715,219.53,219.48,0.67]
[1759327955280,14.57991715,219.53,219.48,0.67]
[1759327955589,0.7,219.52,219.49,33.6]
[1759327956014,0.7,219.51,219.49,33.6]
[1759327956197,4.55580865,219.5,219.49,33.6]
[1759327956386,0.28432314,219.52,219.49,33.6]
[1759327956591,13.59559401,219.51,219.49,33.6]
[1759327956802,14.29559401,219.51,219.49,33.6]
[1759327957013,0.28432314,219.5,219.47,35.5]
[1759327957187,0.28432314,219.5,219.48,33.6]
[1759327958513,4.84023963,219.5,219.48,33.6]
[1759327958813,4.84023963,219.5,219.47,35.5]
[1759327958986,18.43583364,219.5,219.49,33.6]
[1759327962115,13.87991715,219.5,219.49,33.6]
[1759327962490,13.59559401,219.5,219.49,34.27]
[1759327962686,18.15140266,219.5,219.47,35.5]
[1759327962886,13.59559401,219.49,219.48,33.58]
[1759327963099,4.55580865,219.5,219.48,33.58]
[1759327963312,5.25580865,219.5,219.48,33.58]
[1759327963522,0.28432314,219.49,219.47,35.5]
[1759327963692,13.59559401,219.47,219.44,0.2]
[1759327963896,13.59559401,219.47,219.45,33.58]
[1759327963897,4.84096216,219.46,219.45,33.58]
[1759327964097,18.43655617,219.46,219.45,33.58]
[1759327964317,19.13655617,219.46,219.45,33.58]
[1759327965017,13.59559401,219.45,219.44,0.2]
[1759327965200,17.07598038,219.45,219.44,0.2]
[1759327965425,38.57598038,219.45,219.44,32.98]
[1759327966021,43.13282704,219.45,219.44,32.98]
[1759327967291,43.13282704,219.45,219.44,0.2]
[1759327967496,43.13282704,219.45,219.44,33.76]
[1759327968404,39.93676381,219.45,219.44,33.76]
[1759327968714,43.13282704,219.45,219.44,33.76]
[1759327969011,39.23676381,219.45,219.44,33.76]
[1759327969224,18.43676381,219.45,219.44,33.76]
[1759327969596,39.93676381,219.45,219.44,33.76]
[1759327969789,43.13282704,219.45,219.44,0.2]
[1759327969996,43.13282704,219.45,219.44,33.76]
[1759327970698,39.93676381,219.45,219.44,33.76]
[1759327971020,43.13282704,219.45,219.44,0.2]
[1759327971190,43.13282704,219.45,219.44,33.76]
[1759327972522,43.13282704,219.45,219.44,0.2]
[1759327972722,43.13282704,219.45,219.44,33.76]
[1759327973514,34.67991715,219.44,219.43,1e-08]
[1759327973814,13.87991715,219.43,219.42,1e-08]
[1759327974010,17.78598038,219.43,219.42,1e-08]
[1759327974708,22.34324237,219.43,219.42,1e-08]
[1759327975925,38.952856,219.43,219.42,1e-08]
[1759327976229,3.19606323,219.44,219.42,1e-08]
[1759327976523,34.39559401,219.43,219.42,1e-08]
[1759327976722,39.23717914,219.43,219.42,1e-08]
[1759327977126,39.94717914,219.43,219.42,1e-08]
[1759327977421,43.14324237,219.43,219.42,1e-08]
[1759327977629,34.67991715,219.43,219.42,1e-08]
[1759327977803,18.43717914,219.43,219.42,1e-08]
[1759327978004,18.43717914,219.43,219.42,0.66000001]
[1759327978198,18.43717914,219.43,219.42,1e-08]
[1759327978395,18.43717914,219.43,219.42,0.66000001]
[1759327978617,13.73775558,219.43,219.42,0.66000001]
[1759327978807,13.87991715,219.43,219.42,0.66000001]
[1759327979412,18.43717914,219.43,219.42,0.66000001]
[1759327980104,18.43717914,219.43,219.42,1e-08]
[1759327980325,18.43717914,219.43,219.42,31.70000001]
[1759327980704,13.87991715,219.43,219.42,31.70000001]
[1759327982136,18.43717914,219.43,219.42,32.36000001]
[1759327982817,18.43717914,219.43,219.42,31.70000001]
[1759327984921,18.43717914,219.43,219.36,0.2]
[1759327984922,13.59559401,219.39,219.36,1e-08]
[1759327985143,21.08432314,219.36,219.35,1e-08]
[1759327985312,13.87991715,219.35,219.33,1e-08]
[1759327985511,17.07598038,219.34,219.33,1e-08]
[1759327986020,22.34511232,219.34,219.33,1e-08]
[1759327987935,36.09910907,219.34,219.33,1e-08]
[1759327989125,32.19304584,219.34,219.33,1e-08]
[1759327989328,4.5587812,219.36,219.33,0.66000001]
[1759327989536,13.6155996,219.41,219.34,0.66]
[1759327989825,14.58948247,219.43,219.34,0.66]
[1759327990029,13.59559401,219.42,219.34,0.66]
[1759327990215,13.59559401,219.4,219.34,5.21912091]
[1759327990427,4.55742672,219.43,219.35,0.66]
[1759327990627,19.14664494,219.43,219.35,0.66]
[1759327990829,13.73775558,219.42,219.35,0.66]
[1759327991021,13.59559401,219.42,219.35,0.66]
[1759327991424,0.28432314,219.41,219.35,0.66]
[1759327991631,13.59559401,219.42,219.35,0.66]
[1759327991846,0.28432314,219.41,219.35,0.66]
[1759327992547,13.59559401,219.4,219.35,0.66]
[1759327993624,0.14216157,219.39,219.33,1e-08]
[1759327993825,0.14216157,219.39,219.34,0.66]
[1759327994025,0.14216157,219.39,219.35,34.18]
[1759327994346,13.87991715,219.4,219.36,0.66]
[1759327995048,0.28432314,219.4,219.36,0.66]
[1759327995237,4.8422389,219.4,219.37,0.66]
[1759327995442,4.8422389,219.4,219.38,0.66]
[1759327995646,18.43783291,219.4,219.39,0.66]
[1759327995852,13.87991715,219.4,219.39,0.66]
[1759327996151,18.43780229,219.4,219.39,0.66]
[1759327996357,13.87991715,219.4,219.39,0.66]
[1759327996541,18.43780229,219.4,219.35,33.52]
[1759327996852,0.71,219.46,219.36,0.66]
[1759327997052,0.28432314,219.42,219.36,0.66]
[1759327998456,13.59559401,219.41,219.36,0.66]
[1759327998751,13.59559401,219.41,219.37,0.66]
[1759327999164,13.59559401,219.41,219.35,34.18]
[1759327999733,13.59559401,219.39,219.36,0.69]
[1759327999932,13.59559401,219.39,219.35,33.52]
[1759328000132,13.59559401,219.39,219.36,0.69]
[1759328000359,13.59559401,219.39,219.37,0.69]
[1759328000863,13.59559401,219.39,219.35,34.21]
[1759328001057,13.59559401,219.39,219.36,0.69]
[1759328001235,13.59559401,219.39,219.37,0.69]
[1759328001745,13.59559401,219.37,219.35,34.21]
[1759328001949,13.59559401,219.37,219.36,0.69]
[1759328002972,13.59559401,219.37,219.35,33.52]
[1759328003361,13.59559401,219.37,219.35,34.23]
[1759328004360,18.1542602,219.37,219.36,33.48]
[1759328004670,18.1542602,219.37,219.34,0.71]
[1759328004966,18.1542602,219.37,219.35,33.48]
[1759328005147,13.59559401,219.35,219.33,1e-08]
[1759328005348,0.28432314,219.34,219.33,1e-08]
[1759328005554,0.28432314,219.32,219.29,35.56]
[1759328005764,13.87991715,219.3,219.29,35.56]
[1759328005947,14.52991715,219.3,219.29,35.56]
[1759328006147,13.87991715,219.3,219.29,35.56]
[1759328006359,18.43988067,219.3,219.29,35.56]
[1759328006546,39.23988067,219.3,219.29,35.56]
[1759328006864,39.23988067,219.3,219.29,69.04]
[1759328008085,39.88988067,219.3,219.29,35.56]
[1759328008291,13.73775558,219.26,219.22,0.2]
[1759328008447,13.73775558,219.26,219.23,33.48]
[1759328008448,0.14216157,219.25,219.23,33.48]
[1759328008655,0.14216157,219.25,219.24,33.48]
[1759328010647,18.44092057,219.25,219.24,33.48]
[1759328010879,13.59559401,219.25,219.24,33.48]
[1759328011175,18.15659743,219.25,219.24,33.48]
[1759328011383,13.59559401,219.24,219.22,0.2]
[1759328011556,13.59559401,219.24,219.23,0.71]
[1759328011747,13.87991715,219.26,219.23,33.48]
[1759328012568,13.59559401,219.24,219.23,33.48]
[1759328012883,13.59559401,219.24,219.22,0.2]
[1759328012884,13.87991715,219.24,219.22,0.2]
[1759328013181,13.87991715,219.24,219.23,33.48]
[1759328013570,0.28432314,219.23,219.22,0.2]
[1759328013880,17.73329546,219.23,219.22,33.68]
[1759328014276,17.08329546,219.23,219.22,33.68]
[1759328014769,18.44133666,219.23,219.22,33.68]
[1759328015742,18.44133666,219.23,219.22,0.2]
[1759328015970,22.29471497,219.23,219.22,33.66]
[1759328016266,18.44133666,219.23,219.22,33.66]
[1759328016458,19.09133666,219.23,219.22,33.66]
[1759328016860,22.29471497,219.23,219.22,33.66]
[1759328017168,18.44133666,219.23,219.22,33.66]
[1759328018047,19.09133666,219.23,219.22,33.66]
[1759328018263,18.44133666,219.23,219.22,33.66]
[1759328019053,13.59559401,219.23,219.22,34.37]
[1759328020075,18.15701352,219.23,219.22,33.66]
[1759328020490,13.59559401,219.23,219.22,34.37]
[1759328022872,18.15701352,219.23,219.22,33.66]
[1759328023253,18.15701352,219.23,219.22,0.2]
[1759328023467,18.44133666,219.23,219.22,33.66]
[1759328024458,19.09133666,219.23,219.22,33.66]
[1759328025169,19.09133666,219.23,219.22,33.64]
[1759328025470,18.44133666,219.23,219.22,33.64]
[1759328026482,18.44133666,219.23,219.22,0.2]
[1759328026483,21.14190024,219.23,219.22,0.2]
[1759328026688,21.14190024,219.23,219.22,1e-08]
[1759328026860,21.14190024,219.23,219.2,0.2]
[1759328026861,39.09959126,219.21,219.2,0.2]
[1759328027061,34.39559401,219.18,219.17,35.56]
[1759328028059,34.39559401,219.18,219.17,69.0]
[1759328028899,13.59559401,219.18,219.17,69.0]
[1759328029258,13.87991715,219.18,219.17,69.0]
[1759328029484,13.87991715,219.18,219.17,69.71]
[1759328029681,13.87991715,219.18,219.17,69.0]
[1759328030080,18.44237722,219.18,219.17,69.0]
[1759328031394,18.44237722,219.18,219.17,35.56]
[1759328031573,18.44237722,219.18,219.17,69.0]
[1759328032390,13.87991715,219.18,219.17,69.71]
[1759328032594,18.44237722,219.18,219.17,69.0]
[1759328032992,13.87991715,219.18,219.17,69.0]
[1759328033194,13.59559401,219.18,219.17,69.71]
[1759328035310,18.15805408,219.18,219.17,69.0]
[1759328035676,13.59559401,219.18,219.17,69.0]
[1759328036107,13.59559401,219.18,219.17,69.7]
[1759328036276,13.59559401,219.18,219.17,36.26]
[1759328036478,13.59559401,219.18,219.17,34.12]
[1759328038124,34.25278168,219.26,219.17,38.68266824]
[1759328038400,18.15659743,219.25,219.18,0.7]
[1759328038604,18.15659743,219.25,219.19,33.42]
[1759328038803,0.14216157,219.24,219.19,33.42]
[1759328039012,0.28432314,219.24,219.2,0.7]
[1759328039309,0.28432314,219.24,219.21,33.42]
[1759328039509,13.59559401,219.26,219.22,34.12]
[1759328039897,0.28432314,219.25,219.22,34.12]
[1759328040089,0.28432314,219.25,219.22,33.42]
[1759328040400,0.28432314,219.25,219.22,34.12]
[1759328040714,0.28432314,219.25,219.23,0.7]
[1759328040896,0.28432314,219.27,219.23,0.7]
[1759328041206,13.59559401,219.26,219.2,0.7]
[1759328041380,13.59559401,219.24,219.2,0.7]
[1759328041586,13.59559401,219.24,219.21,33.4]
[1759328041797,0.28432314,219.25,219.22,0.7]
[1759328042196,13.59559401,219.24,219.14,21.0]
[1759328042400,0.14216157,219.22,219.16,0.7]
[1759328043712,13.59559401,219.2,219.16,0.7]
[1759328043876,13.59559401,219.2,219.17,33.4]
[1759328044082,13.59559401,219.2,219.16,0.7]
[1759328044393,0.14216157,219.2,219.18,33.4]
[1759328046315,4.70424325,219.2,219.18,33.4]
[1759328047421,0.14216157,219.19,219.14,0.9]
[1759328047624,0.28432314,219.25,219.18,20.8]
[1759328047792,0.28432314,219.23,219.19,26.6]
[1759328047985,13.59559401,219.22,219.19,26.6]
[1759328048190,13.59559401,219.22,219.19,27.3]
[1759328048409,0.28432314,219.23,219.19,27.3]
[1759328049604,0.28432314,219.23,219.2,0.7]
[1759328049991,0.28432314,219.23,219.19,26.6]
[1759328050209,0.28432314,219.23,219.19,27.3]
[1759328050818,18.15597343,219.28,219.2,0.7]
[1759328051012,13.59559401,219.28,219.2,0.7]
[1759328051384,3.06561286,219.3,219.2,0.7]
[1759328051591,13.59559401,219.31,219.21,4.56183568]
[1759328051894,13.59559401,219.31,219.22,0.7]
[1759328052095,13.93108794,219.33,219.23,33.38]
[1759328052096,13.59559401,219.33,219.23,33.38]
[1759328052323,13.59559401,219.33,219.26,20.8]
[1759328052481,13.59559401,219.33,219.27,33.38]
[1759328052686,13.59559401,219.33,219.28,0.7]
[1759328052883,13.59559401,219.34,219.29,0.7]
[1759328053116,13.59559401,219.34,219.27,33.38]
[1759328053415,13.59559401,219.34,219.3,0.7]
[1759328053729,3.06561286,219.41,219.31,38.63969768]
[1759328054031,14.25752202,219.43,219.32,54.88]
[1759328054032,13.59559401,219.42,219.32,54.88]
[1759328054321,13.59559401,219.42,219.33,0.7]
[1759328054616,4.55702614,219.45,219.33,0.7]
[1759328054995,13.59559401,219.44,219.33,0.7]
[1759328055198,0.65,219.43,219.34,33.36]
[1759328055390,0.28432314,219.43,219.35,0.7]
[1759328055710,0.65,219.46,219.35,5.25883164]
[1759328055904,13.59559401,219.45,219.36,0.7]
[1759328056112,18.15245645,219.45,219.36,0.7]
[1759328056293,0.28432314,219.44,219.36,0.7]
[1759328056496,13.59559401,219.46,219.36,0.7]
[1759328056699,18.15230681,219.46,219.36,0.7]
[1759328057191,13.59559401,219.46,219.38,20.8]
[1759328057415,13.59559401,219.46,219.39,34.06]
[1759328057614,0.28432314,219.45,219.39,34.06]
[1759328058110,5.49120023,219.45,219.39,0.7]
[1759328058300,5.49120023,219.45,219.4,33.36]
[1759328058504,0.65,219.44,219.41,33.36]
[1759328058829,13.59559401,219.42,219.41,33.36]
[1759328058998,0.28432314,219.41,219.35,0.7]
[1759328059197,0.28432314,219.41,219.36,33.34]
[1759328059402,13.59559401,219.39,219.36,33.34]
[1759328059601,13.59559401,219.39,219.37,0.7]
[1759328059817,13.87991715,219.41,219.37,0.7]
[1759328060019,0.28432314,219.41,219.37,0.7]
[1759328060550,0.28432314,219.41,219.38,33.34]
[1759328060722,0.28432314,219.41,219.38,34.0]
[1759328061021,4.84203096,219.41,219.38,33.34]
[1759328061203,0.28432314,219.42,219.38,33.34]
[1759328061597,4.5576774,219.41,219.38,33.34]
[1759328063207,4.5576774,219.41,219.35,0.66]
[1759328063416,0.66,219.42,219.39,33.34]
[1759328063614,13.59559401,219.41,219.39,33.34]
[1759328063794,4.55681753,219.46,219.4,0.71]
[1759328064012,18.15241154,219.46,219.4,0.71]
[1759328065505,18.85241154,219.46,219.39,33.34]
[1759328066225,18.85241154,219.46,219.4,33.32]